[Event "GER-chT Youth Countries 2018"]
[Site "Wurzburg"]
[Date "2018.10.03"]
[Round "2"]
[White "Roessel, Gino"]
[Black "Grining, Maria"]
[Result "0-1"]
[ECO "B15"]
[WhiteElo "1778"]
[BlackElo "1572"]
[Annotator "NA"]
[PlyCount "82"]
[EventDate "2018.10.02"]
[EventType "team-tourn"]
[EventCountry "GER"]
[SourceTitle "playchess.com"]
[Source "ChessBase"]
[SourceQuality "1"]
[TimeControl "40/5400+30:1800+30"]

1. e4 {[%emt 0:00:00]} c6 {[%emt 0:00:00]} 2. d4 {[%emt 0:00:00]} d5 {[%emt 0:00:00]} 3. Nc3 {[%emt 0:00:00]} dxe4 {[%emt 0:00:00]} 4. Nxe4 {[%emt 0:00:04]} Nf6 {[%emt 0:00:00]} 5. Nxf6+ {[%emt 0:00:29]} exf6 {[%emt 0:00:00]} 6. Nf3 {[%emt 0:01:00]} Bd6 {[%emt 0:00:30]} 7. Bd3 {[%emt 0:01:09]} O-O {[%emt 0:00:09]} 8. O-O {[%emt 0:00:12]} Be6 {[%emt 0:02:21]} 9. c3 {[%emt 0:03:04]} Nd7 {[%emt 0:05:32]} 10. Qc2 {[%emt 0:00:45]} g6 {[%emt 0:00:05]} 11. Re1 {[%emt 0:02:52]} Re8 {[%emt 0:00:23]} 12. Be3 {[%emt 0:09:30]} Bd5 {[%emt 0:08:00]} 13. h3 {[%emt 0:08:54]} Bxf3 {[%emt 0:15:42]} 14. gxf3 {[%emt 0:00:23]} Qc7 {[%emt 0:00:55]} 15. Kg2 {[%emt 0:02:02]} Bf4 {[%emt 0:03:25]} 16. Qd2 {[%emt 0:01:48]} Bd6 {[%emt 0:00:54]} 17. Rg1 {[%emt 0:03:40]} Bh2 {[%emt 0:00:44]} 18. Rh1 {[%emt 0:00:12]} Bd6 {[%emt 0:00:07]} 19. Rag1 {[%emt 0:00:11]} b5 {[%emt 0:09:58]} 20. Kf1 {[%emt 0:04:16]} Nb6 {[%emt 0:20:36]} 21. h4 {[%emt 0:06:20]} Nc4 {[%emt 0:04:35]} 22. Bxc4 {[%emt 0:00:16]} bxc4 {[%emt 0:00:02]} 23. h5 {[%emt 0:01:26]} Rab8 {[%emt 0:05:29]} 24. hxg6 {[%emt 0:02:13]} fxg6 {[%emt 0:00:00]} 25. Qc2 {[%emt 0:07:46]} Qf7 {[%emt 0:08:42]} 26. f4 {[%emt 0:05:12]} f5 {[%emt 0:02:17]} 27. Rh5 {[%emt 0:02:03]} Rf8 {[%emt 0:02:12]} 28. Rh6 {[%emt 0:02:55]} Rb7 {[%emt 0:01:52]} 29. Bc1 {[%emt 0:02:26]} Re7 {[%emt 0:01:32]} 30. Qa4 {[%emt 0:01:21]} Qd5 {[%emt 0:02:07]} 31. Rg3 {[%emt 0:02:38]} Rfe8 {[%emt 0:01:39]} 32. Be3 {[%emt 0:00:47]} Bxf4 {[%emt 0:00:21]} 33. Rgh3 {[%emt 0:03:39]} Bxh6 {[%emt 0:00:18]} 34. Rxh6 {[%emt 0:00:22]} f4 {[%emt 0:02:27]} 35. Bd2 {[%emt 0:00:08]} Rf7 {[%emt 0:02:11]} 36. Qa6 {[%emt 0:05:48]} Qe6 {[%emt 0:01:26]} 37. Kg1 {[%emt 0:02:17]} f3 {[%emt 0:00:21]} 38. Rh4 {[%emt 0:01:48]} Rf5 {[%emt 0:01:35]} 39. Qxa7 {[%emt 0:02:33]} Rh5 {[%emt 0:00:07]} 40. Rh2 {[%emt 0:00:39]} Rxh2 {[%emt 0:00:23]} 41. Kxh2 {[%emt 0:30:09]} Qg4 0-1

[Event "GER-chT Youth Countries 2018"]
[Site "Wurzburg"]
[Date "2018.10.03"]
[Round "2"]
[White "Genov, Valentin"]
[Black "Wiesner, Paula"]
[Result "0-1"]
[ECO "D31"]
[WhiteElo "1756"]
[BlackElo "1969"]
[Annotator "NA"]
[PlyCount "54"]
[EventDate "2018.10.02"]
[EventType "team-tourn"]
[EventCountry "GER"]
[SourceTitle "playchess.com"]
[Source "ChessBase"]
[SourceQuality "1"]
[TimeControl "40/5400+30:1800+30"]

1. d4 {[%emt 0:00:00]} d5 {[%emt 0:00:00]} 2. c4 {[%emt 0:00:00]} c6 {[%emt 0:00:00]} 3. Nc3 {[%emt 0:00:00]} e6 {[%emt 0:00:00]} 4. Nf3 {[%emt 0:00:01]} dxc4 {[%emt 0:00:00]} 5. a4 {[%emt 0:00:22]} Bb4 {[%emt 0:00:21]} 6. e4 {[%emt 0:12:03]} b5 {[%emt 0:03:56]} 7. Bg5 {[%emt 0:10:30]} Ne7 {[%emt 0:05:30]} 8. Be2 {[%emt 0:08:02]} Bb7 {[%emt 0:03:15]} 9. O-O {[%emt 0:00:37]} a6 {[%emt 0:01:32]} 10. Ne5 {[%emt 0:09:39]} O-O {[%emt 0:03:58]} 11. Bg4 {[%emt 0:00:49]} Nd7 {[%emt 0:05:08]} 12. f4 {[%emt 0:01:48]} Nxe5 {[%emt 0:03:14]} 13. fxe5 {[%emt 0:00:10]} Qd7 {[%emt 0:05:24]} 14. Be3 {[%emt 0:12:43]} Qc7 {[%emt 0:03:09]} 15. Qe2 {[%emt 0:07:15]} Rad8 {[%emt 0:11:23]} 16. Qf2 {[%emt 0:17:18]} c5 {[%emt 0:06:35]} 17. axb5 {[%emt 0:02:18]} cxd4 {[%emt 0:04:40]} 18. Bxd4 {[%emt 0:02:14]} Rxd4 {[%emt 0:00:57]} 19. Qxd4 {[%emt 0:00:15]} Bc5 {[%emt 0:00:36]} 20. Rad1 {[%emt 0:03:05]} Bxd4+ {[%emt 0:02:03]} 21. Rxd4 {[%emt 0:00:09]} Qc5 {[%emt 0:01:20]} 22. Rfd1 {[%emt 0:00:08]} Rd8 {[%emt 0:01:08]} 23. Ne2 {[%emt 0:00:18]} axb5 {[%emt 0:00:55]} 24. Kh1 {[%emt 0:00:07]} Rxd4 {[%emt 0:00:06]} 25. Rxd4 {[%emt 0:00:04]} Qc7 {[%emt 0:00:38]} 26. Nc3 {[%emt 0:00:55]} Bc6 {[%emt 0:01:22]} 27. h3 {[%emt 0:01:03]} h6 {[%emt 0:01:34]} 0-1

[Event "GER-chT Youth Countries 2018"]
[Site "Wurzburg"]
[Date "2018.10.03"]
[Round "2"]
[White "Liu, Sijia Anna"]
[Black "Bashylina, Luisa"]
[Result "0-1"]
[ECO "B43"]
[WhiteElo "1730"]
[BlackElo "1837"]
[Annotator "NA"]
[PlyCount "64"]
[EventDate "2018.10.02"]
[EventType "team-tourn"]
[EventCountry "GER"]
[SourceTitle "playchess.com"]
[Source "ChessBase"]
[SourceQuality "1"]
[TimeControl "40/5400+30:1800+30"]

1. e4 {[%emt 0:00:00]} c5 {[%emt 0:00:00]} 2. Nf3 {[%emt 0:00:00]} a6 {[%emt 0:00:13]} 3. Nc3 {[%emt 0:00:02]} e6 {[%emt 0:00:43]} 4. d4 {[%emt 0:00:54]} cxd4 {[%emt 0:00:04]} 5. Nxd4 {[%emt 0:00:05]} Qc7 {[%emt 0:00:04]} 6. Be2 {[%emt 0:01:48]} Nf6 {[%emt 0:00:39]} 7. a3 {[%emt 0:02:19]} b5 {[%emt 0:00:25]} 8. Bf3 {[%emt 0:01:20]} Bb7 {[%emt 0:02:05]} 9. Qd3 {[%emt 0:01:52]} d6 {[%emt 0:02:14]} 10. O-O {[%emt 0:01:55]} Be7 {[%emt 0:00:38]} 11. Be3 {[%emt 0:02:07]} O-O {[%emt 0:00:59]} 12. h3 {[%emt 0:02:01]} Nbd7 {[%emt 0:00:18]} 13. Qe2 {[%emt 0:02:08]} Ne5 {[%emt 0:03:32]} 14. g4 {[%emt 0:02:42]} Nxf3+ {[%emt 0:01:40]} 15. Qxf3 {[%emt 0:00:20]} d5 {[%emt 0:04:11]} 16. exd5 {[%emt 0:07:13]} Nxd5 {[%emt 0:00:36]} 17. Bd2 {[%emt 0:02:47]} Bd6 {[%emt 0:01:14]} 18. Ne4 {[%emt 0:03:19]} Nf6 {[%emt 0:01:48]} 19. Rfe1 {[%emt 0:03:48]} Nxe4 {[%emt 0:00:15]} 20. Rxe4 {[%emt 0:00:08]} Bxe4 {[%emt 0:01:38]} 21. Qxe4 {[%emt 0:00:10]} Rac8 {[%emt 0:01:38]} 22. Bc3 {[%emt 0:02:18]} Rfd8 {[%emt 0:04:31]} 23. Rf1 {[%emt 0:05:25]} Bxa3 {[%emt 0:02:33]} 24. f4 {[%emt 0:03:59]} Bc5 {[%emt 0:00:37]} 25. b4 {[%emt 0:05:16]} Bb6 {[%emt 0:01:23]} 26. Ba1 {[%emt 0:02:41]} Qxc2 {[%emt 0:00:50]} 27. Qe3 {[%emt 0:01:11]} Qc4 {[%emt 0:00:42]} 28. Rd1 {[%emt 0:01:33]} Qxb4 {[%emt 0:01:08]} 29. Qe5 {[%emt 0:04:39]} Rc4 {[%emt 0:01:12]} 30. Kh2 {[%emt 0:01:49]} Bxd4 {[%emt 0:00:17]} 31. Rxd4 {[%emt 0:01:03]} Rcxd4 {[%emt 0:00:21]} 32. Bxd4 {[%emt 0:00:13]} Qxd4 {[%emt 0:00:05]} 0-1

[Event "GER-chT Youth Countries 2018"]
[Site "Wurzburg"]
[Date "2018.10.03"]
[Round "2"]
[White "Braeutigam, Katerina"]
[Black "Schwenke, Mia"]
[Result "1-0"]
[ECO "A15"]
[WhiteElo "1696"]
[BlackElo "1203"]
[Annotator "NA"]
[PlyCount "93"]
[EventDate "2018.10.02"]
[EventType "team-tourn"]
[EventCountry "GER"]
[SourceTitle "playchess.com"]
[Source "ChessBase"]
[SourceQuality "1"]
[TimeControl "40/5400+30:1800+30"]

1. c4 {[%emt 0:00:00]} Nf6 {[%emt 0:00:00]} 2. g3 {[%emt 0:00:00]} g6 {[%emt 0:00:00]} 3. Bg2 {[%emt 0:00:00]} Bg7 {[%emt 0:00:03]} 4. Nf3 {[%emt 0:00:11]} d6 {[%emt 0:00:08]} 5. Nc3 {[%emt 0:00:17]} O-O {[%emt 0:00:13]} 6. O-O {[%emt 0:00:09]} e5 {[%emt 0:00:12]} 7. d3 {[%emt 0:00:18]} Nc6 {[%emt 0:00:30]} 8. Qd2 {[%emt 0:00:28]} h6 {[%emt 0:00:45]} 9. a3 {[%emt 0:00:09]} a5 {[%emt 0:00:28]} 10. Rb1 {[%emt 0:00:37]} Be6 {[%emt 0:00:50]} 11. b4 {[%emt 0:00:30]} axb4 {[%emt 0:00:32]} 12. axb4 {[%emt 0:00:16]} Qd7 {[%emt 0:00:51]} 13. b5 {[%emt 0:00:26]} Nd4 {[%emt 0:00:30]} 14. e3 {[%emt 0:05:12]} Nxf3+ {[%emt 0:00:59]} 15. Bxf3 {[%emt 0:00:11]} c6 {[%emt 0:01:30]} 16. bxc6 {[%emt 0:00:50]} bxc6 {[%emt 0:00:14]} 17. Qc2 {[%emt 0:01:36]} Bh3 {[%emt 0:03:53]} 18. Bg2 {[%emt 0:00:09]} Bxg2 {[%emt 0:01:38]} 19. Kxg2 {[%emt 0:00:09]} Ne8 {[%emt 0:00:35]} 20. Bd2 {[%emt 0:00:41]} f5 {[%emt 0:00:32]} 21. Rb3 {[%emt 0:04:10]} g5 {[%emt 0:00:24]} 22. f4 {[%emt 0:02:19]} Nf6 {[%emt 0:03:39]} 23. Rfb1 {[%emt 0:01:39]} Qc8 {[%emt 0:02:20]} 24. Rb7 {[%emt 0:01:41]} c5 {[%emt 0:01:43]} 25. R7b6 {[%emt 0:01:27]} Nd7 {[%emt 0:00:36]} 26. Nd5 {[%emt 0:13:57]} Re8 {[%emt 0:02:06]} 27. Rxd6 {[%emt 0:06:22]} Rb8 {[%emt 0:04:06]} 28. Rxb8 {[%emt 0:01:18]} Nxb8 {[%emt 0:01:29]} 29. Rb6 {[%emt 0:01:21]} Nd7 {[%emt 0:02:08]} 30. Rb5 {[%emt 0:01:15]} Qc6 {[%emt 0:00:53]} 31. Kf2 {[%emt 0:00:54]} g4 {[%emt 0:02:31]} 32. Kg1 {[%emt 0:01:41]} Kh8 {[%emt 0:03:04]} 33. Bc3 {[%emt 0:02:22]} Kh7 {[%emt 0:01:43]} 34. fxe5 {[%emt 0:12:18]} Bxe5 {[%emt 0:01:34]} 35. Bxe5 {[%emt 0:00:44]} Rxe5 {[%emt 0:00:20]} 36. Qb1 {[%emt 0:07:53]} Kg6 {[%emt 0:03:38]} 37. Rb7 {[%emt 0:03:49]} Kh5 {[%emt 0:04:14]} 38. Rxd7 {[%emt 0:01:37]} Rxe3 {[%emt 0:09:04]} 39. Nf4+ {[%emt 0:01:04]} Kg5 {[%emt 0:00:54]} 40. Rg7+ {[%emt 0:00:08]} Kf6 {[%emt 0:00:57]} 41. Rg6+ {[%emt 0:30:17]} Ke7 {[%emt 0:31:11]} 42. Rxc6 {[%emt 0:00:15]} Kf7 {[%emt 0:00:22]} 43. Nd5 {[%emt 0:01:38]} Re6 {[%emt 0:00:39]} 44. Qb7+ {[%emt 0:01:58]} Kf8 {[%emt 0:00:42]} 45. Rc8+ {[%emt 0:00:41]} Re8 {[%emt 0:00:24]} 46. Qe7+ {[%emt 0:00:20]} Kg8 {[%emt 0:00:22]} 47. Rxe8# {[%emt 0:00:06]} 1-0

[Event "GER-chT Youth Countries 2018"]
[Site "Wurzburg"]
[Date "2018.10.03"]
[Round "2"]
[White "Amato, Cristiano"]
[Black "Koenze, Heike"]
[Result "0-1"]
[ECO "B20"]
[WhiteElo "1661"]
[BlackElo "1845"]
[Annotator "NA"]
[PlyCount "92"]
[EventDate "2018.10.02"]
[EventType "team-tourn"]
[EventCountry "GER"]
[SourceTitle "playchess.com"]
[Source "ChessBase"]
[SourceQuality "1"]
[TimeControl "40/5400+30:1800+30"]

1. e4 {[%emt 0:00:00]} c5 {[%emt 0:00:00]} 2. g3 {[%emt 0:00:00]} d6 {[%emt 0:00:00]} 3. d3 {[%emt 0:00:00]} Nc6 {[%emt 0:00:47]} 4. Bg2 {[%emt 0:00:11]} g6 {[%emt 0:00:12]} 5. f4 {[%emt 0:00:08]} e5 {[%emt 0:00:45]} 6. c3 {[%emt 0:01:15]} Bg7 {[%emt 0:00:30]} 7. Nf3 {[%emt 0:00:39]} Nge7 {[%emt 0:02:28]} 8. Na3 {[%emt 0:01:02]} O-O {[%emt 0:01:47]} 9. O-O {[%emt 0:04:06]} Bg4 {[%emt 0:03:56]} 10. Be3 {[%emt 0:00:59]} Qd7 {[%emt 0:03:29]} 11. Qd2 {[%emt 0:02:40]} Bh3 {[%emt 0:05:44]} 12. Rad1 {[%emt 0:01:21]} Bxg2 {[%emt 0:00:17]} 13. Kxg2 {[%emt 0:00:15]} f5 {[%emt 0:06:44]} 14. fxe5 {[%emt 0:04:54]} Nxe5 {[%emt 0:03:12]} 15. Nxe5 {[%emt 0:01:52]} Bxe5 {[%emt 0:00:53]} 16. d4 {[%emt 0:01:39]} cxd4 {[%emt 0:00:33]} 17. cxd4 {[%emt 0:00:10]} Bg7 {[%emt 0:00:24]} 18. e5 {[%emt 0:05:56]} dxe5 {[%emt 0:03:20]} 19. dxe5 {[%emt 0:00:07]} Qc6+ {[%emt 0:00:47]} 20. Kg1 {[%emt 0:00:54]} Bxe5 {[%emt 0:04:01]} 21. Bg5 {[%emt 0:01:30]} Bf6 {[%emt 0:07:23]} 22. Bxf6 {[%emt 0:02:27]} Qxf6 {[%emt 0:00:20]} 23. Rfe1 {[%emt 0:01:44]} Nc6 {[%emt 0:08:18]} 24. Qd5+ {[%emt 0:03:32]} Qf7 {[%emt 0:00:57]} 25. Qb5 Rfe8 {[%emt 0:03:05]} 26. Rxe8+ {[%emt 0:04:02]} Rxe8 {[%emt 0:00:08]} 27. Nc4 {[%emt 0:00:21]} Qe6 {[%emt 0:02:35]} 28. b3 {[%emt 0:10:10]} Re7 {[%emt 0:03:48]} 29. Qd5 {[%emt 0:04:15]} Qxd5 {[%emt 0:04:39]} 30. Rxd5 {[%emt 0:00:18]} Nb4 {[%emt 0:00:15]} 31. Rd2 {[%emt 0:00:47]} Kf7 {[%emt 0:01:44]} 32. Kf2 {[%emt 0:00:43]} h6 {[%emt 0:01:29]} 33. a3 {[%emt 0:01:13]} Nc6 {[%emt 0:00:07]} 34. Rd1 {[%emt 0:02:35]} Ne5 {[%emt 0:01:30]} 35. Nxe5+ {[%emt 0:02:05]} Rxe5 {[%emt 0:00:07]} 36. Rd7+ {[%emt 0:00:07]} Re7 {[%emt 0:00:08]} 37. Rd3 {[%emt 0:00:57]} Ke6 {[%emt 0:01:16]} 38. Kf3 {[%emt 0:01:16]} g5 {[%emt 0:03:30]} 39. a4 {[%emt 0:00:46]} Rd7 {[%emt 0:01:10]} 40. Re3+ {[%emt 0:00:50]} Kf6 {[%emt 0:00:11]} 41. g4 {[%emt 0:34:39]} f4 {[%emt 0:30:57]} 42. Rc3 {[%emt 0:00:43]} Ke5 {[%emt 0:01:01]} 43. h3 {[%emt 0:00:55]} Rd2 {[%emt 0:01:16]} 44. Rc7 {[%emt 0:04:27]} Rd3+ {[%emt 0:00:18]} 45. Kg2 {[%emt 0:00:10]} Rxb3 {[%emt 0:00:15]} 46. Rh7 {[%emt 0:00:10]} Rb6 {[%emt 0:00:47]} 0-1

[Event "GER-chT Youth Countries 2018"]
[Site "Wurzburg"]
[Date "2018.10.03"]
[Round "2"]
[White "Haenselmann, Hendrik"]
[Black "Weimert, Miriam"]
[Result "1/2-1/2"]
[ECO "B32"]
[WhiteElo "1660"]
[BlackElo "1776"]
[Annotator "NA"]
[PlyCount "85"]
[EventDate "2018.10.02"]
[EventType "team-tourn"]
[EventCountry "GER"]
[SourceTitle "playchess.com"]
[Source "ChessBase"]
[SourceQuality "1"]
[TimeControl "40/5400+30:1800+30"]

1. e4 {[%emt 0:00:00]} c5 {[%emt 0:00:00]} 2. Nf3 {[%emt 0:00:00]} Nc6 {[%emt 0:00:00]} 3. d4 {[%emt 0:00:00]} cxd4 {[%emt 0:00:10]} 4. Nxd4 {[%emt 0:00:00]} e5 {[%emt 0:00:12]} 5. Nb5 {[%emt 0:00:00]} d6 {[%emt 0:02:05]} 6. c4 {[%emt 0:01:16]} a6 {[%emt 0:00:55]} 7. N5a3 {[%emt 0:00:44]} Nf6 {[%emt 0:03:24]} 8. Nc3 {[%emt 0:00:12]} Be7 {[%emt 0:00:53]} 9. Be2 {[%emt 0:01:26]} Nd4 {[%emt 0:02:49]} 10. O-O {[%emt 0:02:43]} O-O {[%emt 0:00:35]} 11. Nc2 {[%emt 0:03:02]} Nxe2+ {[%emt 0:01:33]} 12. Qxe2 {[%emt 0:00:56]} Qc7 {[%emt 0:03:29]} 13. Bg5 {[%emt 0:01:31]} Be6 {[%emt 0:05:20]} 14. Ne3 {[%emt 0:01:41]} Rfc8 {[%emt 0:07:09]} 15. Bxf6 {[%emt 0:03:03]} Bxf6 {[%emt 0:01:11]} 16. Ncd5 {[%emt 0:00:56]} Qd8 {[%emt 0:01:55]} 17. Rac1 {[%emt 0:03:07]} Bg5 {[%emt 0:04:20]} 18. Rfd1 {[%emt 0:01:37]} Rc6 {[%emt 0:09:55]} 19. Rc2 {[%emt 0:12:33]} Rac8 {[%emt 0:04:39]} 20. b3 {[%emt 0:00:30]} Bxe3 {[%emt 0:03:46]} 21. Nxe3 {[%emt 0:02:00]} Qg5 {[%emt 0:11:02]} 22. Rcd2 {[%emt 0:09:10]} Rd8 {[%emt 0:06:14]} 23. Nd5 {[%emt 0:08:00]} f5 {[%emt 0:11:02]} 24. exf5 {[%emt 0:22:02]} Bxf5 {[%emt 0:03:54]} 25. f4 {[%emt 0:02:05]} exf4 {[%emt 0:04:30]} 26. Ne7+ {[%emt 0:00:24]} Kf8 {[%emt 0:01:32]} 27. Nxc6 {[%emt 0:00:57]} Re8 {[%emt 0:02:11]} 28. Qf2 {[%emt 0:04:49]} bxc6 {[%emt 0:00:56]} 29. Rxd6 {[%emt 0:06:25]} Bg4 {[%emt 0:02:07]} 30. Rf1 {[%emt 0:03:01]} f3 {[%emt 0:00:58]} 31. Kh1 {[%emt 0:03:53]} Kg8 {[%emt 0:00:21]} 32. gxf3 {[%emt 0:00:37]} Bh5 {[%emt 0:03:20]} 33. Qg3 {[%emt 0:01:37]} Qe3 {[%emt 0:00:38]} 34. Rd7 {[%emt 0:01:38]} g6 {[%emt 0:00:01]} 35. Qf2 {[%emt 0:00:45]} Qf4 {[%emt 0:00:45]} 36. Rd4 {[%emt 0:00:53]} Qf5 {[%emt 0:00:36]} 37. Rd6 {[%emt 0:01:39]} Rf8 {[%emt 0:01:27]} 38. f4 {[%emt 0:01:15]} Qe4+ {[%emt 0:01:42]} 39. Qg2 {[%emt 0:01:16]} Qe3 {[%emt 0:00:41]} 40. Rxc6 {[%emt 0:01:31]} Rxf4 {[%emt 0:00:30]} 41. Rxf4 {[%emt 0:00:58]} Qxf4 {[%emt 0:00:09]} 42. Qd5+ {[%emt 0:06:28]} Kg7 43. Kg1 {[%emt 0:01:43]} 1/2-1/2

[Event "GER-chT Youth Countries 2018"]
[Site "Wurzburg"]
[Date "2018.10.03"]
[Round "2"]
[White "Wagner, Margarethe"]
[Black "Puls, Luisa"]
[Result "1-0"]
[ECO "B76"]
[WhiteElo "1643"]
[BlackElo "1456"]
[Annotator "NA"]
[PlyCount "39"]
[EventDate "2018.10.02"]
[EventType "team-tourn"]
[EventCountry "GER"]
[SourceTitle "playchess.com"]
[Source "ChessBase"]
[SourceQuality "1"]
[TimeControl "40/5400+30:1800+30"]

1. e4 {[%emt 0:00:00]} c5 {[%emt 0:00:00]} 2. Nf3 {[%emt 0:00:00]} d6 {[%emt 0:00:02]} 3. d4 {[%emt 0:00:00]} cxd4 {[%emt 0:00:23]} 4. Nxd4 {[%emt 0:00:00]} Nf6 {[%emt 0:00:23]} 5. Nc3 {[%emt 0:00:06]} g6 {[%emt 0:00:36]} 6. f3 {[%emt 0:01:18]} Bg7 {[%emt 0:01:32]} 7. Be3 {[%emt 0:00:27]} O-O {[%emt 0:02:06]} 8. Qd2 {[%emt 0:00:26]} Nc6 {[%emt 0:01:44]} 9. O-O-O {[%emt 0:00:52]} a6 {[%emt 0:07:10]} 10. g4 {[%emt 0:01:04]} Qc7 {[%emt 0:10:54]} 11. h4 {[%emt 0:02:24]} b5 {[%emt 0:05:42]} 12. h5 {[%emt 0:01:53]} b4 {[%emt 0:16:03]} 13. Nce2 {[%emt 0:00:56]} Nxd4 {[%emt 0:05:18]} 14. Nxd4 {[%emt 0:00:19]} Qa5 {[%emt 0:05:54]} 15. hxg6 {[%emt 0:04:40]} fxg6 {[%emt 0:10:24]} 16. Bc4+ {[%emt 0:02:31]} Kh8 {[%emt 0:03:16]} 17. Bh6 {[%emt 0:06:04]} Bxh6 {[%emt 0:04:44]} 18. Qxh6 {[%emt 0:01:52]} Bxg4 {[%emt 0:05:12]} 19. fxg4 {[%emt 0:01:37]} g5 {[%emt 0:03:56]} 20. Nf5 {[%emt 0:01:52]} 1-0

[Event "GER-chT Youth Countries 2018"]
[Site "Wurzburg"]
[Date "2018.10.03"]
[Round "2"]
[White "Roncea, Andrea-Alexandra"]
[Black "Butenandt, Svenja"]
[Result "0-1"]
[ECO "B40"]
[WhiteElo "1515"]
[BlackElo "1810"]
[Annotator "NA"]
[PlyCount "48"]
[EventDate "2018.10.02"]
[EventType "team-tourn"]
[EventCountry "GER"]
[SourceTitle "playchess.com"]
[Source "ChessBase"]
[SourceQuality "1"]
[TimeControl "40/5400+30:1800+30"]

1. e4 {[%emt 0:00:00]} c5 {[%emt 0:00:00]} 2. Nf3 {[%emt 0:00:00]} e6 {[%emt 0:00:00]} 3. c3 {[%emt 0:00:00]} Nc6 {[%emt 0:01:07]} 4. Bb5 {[%emt 0:01:45]} Qc7 {[%emt 0:02:39]} 5. O-O {[%emt 0:01:31]} a6 {[%emt 0:03:14]} 6. Ba4 {[%emt 0:01:30]} b5 {[%emt 0:02:17]} 7. Bc2 {[%emt 0:00:09]} Nf6 {[%emt 0:00:26]} 8. Re1 {[%emt 0:00:47]} d6 {[%emt 0:01:23]} 9. d4 {[%emt 0:00:44]} Bb7 {[%emt 0:09:54]} 10. e5 {[%emt 0:10:15]} dxe5 {[%emt 0:03:37]} 11. dxe5 {[%emt 0:00:59]} Rd8 {[%emt 0:00:49]} 12. Qe2 {[%emt 0:03:29]} Nd5 {[%emt 0:00:52]} 13. Bg5 {[%emt 0:02:39]} Be7 {[%emt 0:03:32]} 14. Nbd2 {[%emt 0:05:28]} Bxg5 {[%emt 0:15:45]} 15. Nxg5 {[%emt 0:00:14]} Nf4 {[%emt 0:04:06]} 16. Qe3 {[%emt 0:05:59]} Qxe5 {[%emt 0:09:04]} 17. Qxe5 {[%emt 0:01:22]} Nxe5 {[%emt 0:00:05]} 18. Nxe6 {[%emt 0:02:15]} Nxe6 {[%emt 0:00:58]} 19. Rxe5 {[%emt 0:02:39]} Rxd2 {[%emt 0:00:09]} 20. Bf5 {[%emt 0:00:44]} Rxb2 {[%emt 0:04:57]} 21. Bxe6 {[%emt 0:02:09]} fxe6 {[%emt 0:00:06]} 22. Rxc5 {[%emt 0:01:57]} Kd7 {[%emt 0:03:23]} 23. Rd1+ {[%emt 0:04:24]} Bd5 {[%emt 0:00:23]} 24. c4 {[%emt 0:01:44]} Kd6 {[%emt 0:02:09]} 0-1

[Event "GER-chT Youth Countries 2018"]
[Site "Wurzburg"]
[Date "2018.10.03"]
[Round "2"]
[White "Bress, Amy Charlize"]
[Black "Langer, Paul Georg"]
[Result "1/2-1/2"]
[ECO "B92"]
[WhiteElo "1464"]
[BlackElo "1348"]
[Annotator "NA"]
[PlyCount "127"]
[EventDate "2018.10.02"]
[EventType "team-tourn"]
[EventCountry "GER"]
[SourceTitle "playchess.com"]
[Source "ChessBase"]
[SourceQuality "1"]
[TimeControl "40/5400+30:1800+30"]

1. e4 {[%emt 0:00:00]} c5 {[%emt 0:00:00]} 2. Nf3 {[%emt 0:00:00]} d6 {[%emt 0:00:00]} 3. d4 {[%emt 0:00:32]} cxd4 {[%emt 0:00:11]} 4. Nxd4 {[%emt 0:00:11]} Nf6 {[%emt 0:00:10]} 5. Nc3 {[%emt 0:00:17]} a6 {[%emt 0:00:20]} 6. Be2 {[%emt 0:03:29]} e5 {[%emt 0:00:15]} 7. Nf3 {[%emt 0:00:55]} Be7 {[%emt 0:00:31]} 8. O-O {[%emt 0:01:23]} O-O {[%emt 0:00:13]} 9. a4 {[%emt 0:06:32]} Be6 {[%emt 0:01:23]} 10. h3 {[%emt 0:03:42]} Nbd7 {[%emt 0:00:31]} 11. Be3 {[%emt 0:01:51]} Qc7 {[%emt 0:01:54]} 12. Nd2 {[%emt 0:12:08]} Rfc8 {[%emt 0:01:26]} 13. Kh1 {[%emt 0:05:52]} d5 {[%emt 0:01:18]} 14. exd5 {[%emt 0:02:23]} Nxd5 {[%emt 0:00:26]} 15. Nxd5 {[%emt 0:14:29]} Bxd5 {[%emt 0:00:23]} 16. Nf3 {[%emt 0:02:31]} Be6 {[%emt 0:01:16]} 17. c3 {[%emt 0:02:58]} Rd8 {[%emt 0:02:31]} 18. Qc1 {[%emt 0:02:32]} Rac8 {[%emt 0:01:31]} 19. Rd1 Bc5 {[%emt 0:02:25]} 20. Bxc5 {[%emt 0:02:39]} Nxc5 {[%emt 0:00:51]} 21. Qe3 {[%emt 0:07:44]} f6 {[%emt 0:01:45]} 22. Nd2 {[%emt 0:02:14]} Nb3 {[%emt 0:01:28]} 23. Nxb3 {[%emt 0:07:38]} Bxb3 {[%emt 0:00:26]} 24. Rxd8+ {[%emt 0:00:25]} Rxd8 {[%emt 0:00:20]} 25. Qc1 {[%emt 0:05:27]} Qd7 {[%emt 0:01:18]} 26. a5 {[%emt 0:00:46]} Qd2 {[%emt 0:01:13]} 27. Qxd2 {[%emt 0:04:58]} Rxd2 {[%emt 0:00:10]} 28. Bf3 {[%emt 0:00:38]} Bd5 {[%emt 0:01:46]} 29. Rd1 {[%emt 0:02:19]} Rxd1+ {[%emt 0:00:24]} 30. Bxd1 {[%emt 0:00:05]} Kf7 {[%emt 0:00:10]} 31. Kh2 {[%emt 0:04:04]} Ke6 {[%emt 0:00:45]} 32. Kg3 {[%emt 0:00:25]} Kd6 {[%emt 0:00:47]} 33. Bf3 {[%emt 0:01:50]} e4 {[%emt 0:03:15]} 34. Be2 {[%emt 0:00:31]} Ke5 {[%emt 0:02:04]} 35. Kh2 {[%emt 0:01:21]} f5 {[%emt 0:01:04]} 36. Kg1 {[%emt 0:00:33]} f4 {[%emt 0:00:53]} 37. Kf1 {[%emt 0:00:15]} e3 {[%emt 0:01:23]} 38. Bf3 {[%emt 0:00:46]} Bxf3 {[%emt 0:02:17]} 39. gxf3 {[%emt 0:00:04]} g6 {[%emt 0:01:23]} 40. Ke2 {[%emt 0:00:51]} exf2 {[%emt 0:00:14]} 41. Kxf2 {[%emt 0:30:06]} Kd5 {[%emt 0:30:16]} 42. b3 {[%emt 0:01:40]} Kc5 {[%emt 0:00:42]} 43. Ke2 {[%emt 0:00:08]} Kb5 {[%emt 0:02:10]} 44. Kd3 {[%emt 0:00:00]} Kxa5 {[%emt 0:00:00]} 45. Ke4 {[%emt 0:00:00]} b5 {[%emt 0:00:00]} 46. Kxf4 {[%emt 0:00:00]} b4 {[%emt 0:00:00]} 47. c4 {[%emt 0:00:00]} Kb6 {[%emt 0:00:00]} 48. Ke4 {[%emt 0:00:00]} Kc5 {[%emt 0:00:00]} 49. h4 {[%emt 0:00:00]} a5 {[%emt 0:00:00]} 50. Kd3 {[%emt 0:00:00]} h6 {[%emt 0:00:00]} 51. f4 {[%emt 0:00:00]} h5 {[%emt 0:00:00]} 52. Ke3 {[%emt 0:00:00]} a4 {[%emt 0:00:00]} 53. bxa4 {[%emt 0:00:00]} Kxc4 {[%emt 0:00:00]} 54. Kd2 {[%emt 0:00:00]} b3 {[%emt 0:00:00]} 55. a5 {[%emt 0:00:00]} Kb5 {[%emt 0:00:00]} 56. a6 {[%emt 0:00:00]} Kxa6 {[%emt 0:00:00]} 57. Kc3 {[%emt 0:00:00]} Kb6 {[%emt 0:00:00]} 58. Kxb3 {[%emt 0:00:00]} Kc6 {[%emt 0:00:00]} 59. Kc4 {[%emt 0:00:00]} Kd6 {[%emt 0:00:00]} 60. Kd4 {[%emt 0:00:00]} Ke6 {[%emt 0:00:00]} 61. Ke4 {[%emt 0:00:00]} Kf6 {[%emt 0:00:00]} 62. Ke3 {[%emt 0:00:00]} Kf5 {[%emt 0:00:00]} 63. Kf3 Ke6 64. Ke4 {Ke5+} 1/2-1/2